[Event "Early-Titled-Tuesday-Blitz-August-29-2023"]
[Site "Chess.com"]
[Date "2023.08.29"]
[Round "9"]
[White "Zq1"]
[Black "GasconJR"]
[Result "0-1"]
[WhiteElo "2540"]
[BlackElo "2666"]
[TimeControl "180+1"]
[EndTime "9:44:59 PDT"]
[Termination "GasconJR won by resignation"]

1. d4 {[%clk 0:03:00.9]} 1... Nf6 {[%clk 0:02:59.5]} 2. Nf3 {[%clk 0:02:59]}
2... e6 {[%clk 0:02:58.6]} 3. c4 {[%clk 0:02:58.4]} 3... c5 {[%clk 0:02:58.4]}
4. d5 {[%clk 0:02:57.5]} 4... exd5 {[%clk 0:02:58.8]} 5. cxd5 {[%clk 0:02:57.1]}
5... d6 {[%clk 0:02:59.7]} 6. e4 {[%clk 0:02:54.6]} 6... g6 {[%clk 0:02:52.8]}
7. Bd3 {[%clk 0:02:53.7]} 7... a6 {[%clk 0:02:43]} 8. a4 {[%clk 0:02:52.5]} 8...
Bg4 {[%clk 0:02:42.6]} 9. Nbd2 {[%clk 0:02:51.3]} 9... Bg7 {[%clk 0:02:35.2]}
10. O-O {[%clk 0:02:48.7]} 10... O-O {[%clk 0:02:35]} 11. h3 {[%clk 0:02:47.3]}
11... Bxf3 {[%clk 0:02:35]} 12. Nxf3 {[%clk 0:02:47.1]} 12... Nbd7 {[%clk
0:02:26.8]} 13. Bf4 {[%clk 0:02:45.9]} 13... Qe7 {[%clk 0:02:25.5]} 14. Re1
{[%clk 0:02:31.8]} 14... Nh5 {[%clk 0:02:21.6]} 15. Bg5 {[%clk 0:02:30.6]} 15...
Bf6 {[%clk 0:02:19.5]} 16. Bh6 {[%clk 0:02:29.3]} 16... Bxb2 {[%clk 0:02:10]}
17. Bxf8 {[%clk 0:02:25.2]} 17... Nxf8 {[%clk 0:02:06.9]} 18. Rb1 {[%clk
0:02:24.3]} 18... Bc3 {[%clk 0:02:03.8]} 19. Re2 {[%clk 0:02:16.8]} 19... Nf4
{[%clk 0:02:03.3]} 20. Rc2 {[%clk 0:02:08.4]} 20... Bg7 {[%clk 0:01:31.5]} 21.
Bf1 {[%clk 0:02:01.6]} 21... Qxe4 {[%clk 0:00:53.9]} 22. Rxb7 {[%clk 0:01:55.2]}
22... Qxa4 {[%clk 0:00:22.2]} 23. Qd2 {[%clk 0:01:39.3]} 23... Bh6 {[%clk
0:00:21]} 24. Qc3 {[%clk 0:01:30]} 24... Qe4 {[%clk 0:00:17.2]} 25. Qc4 {[%clk
0:01:16.3]} 25... Nxh3+ {[%clk 0:00:06]} 26. gxh3 {[%clk 0:01:11]} 26... Qxf3
{[%clk 0:00:05.9]} 27. Re2 {[%clk 0:01:10.9]} 27... Qf6 {[%clk 0:00:05.1]} 28.
Ree7 {[%clk 0:01:07.9]} 28... a5 {[%clk 0:00:02.7]} 29. Rxf7 {[%clk 0:01:03.6]}
29... Qxf7 {[%clk 0:00:03.6]} 30. Rxf7 {[%clk 0:01:02.8]} 30... Kxf7 {[%clk
0:00:04.5]} 31. Qb5 {[%clk 0:01:00.4]} 31... Kg8 {[%clk 0:00:02.9]} 32. Qb7
{[%clk 0:00:59.1]} 32... Re8 {[%clk 0:00:03.2]} 33. Bb5 {[%clk 0:00:56.7]} 33...
Re5 {[%clk 0:00:02.8]} 34. Qa7 {[%clk 0:00:46.6]} 34... Bf4 {[%clk 0:00:02.6]}
35. Qxa5 {[%clk 0:00:43.7]} 35... Rf5 {[%clk 0:00:03.3]} 36. Qc7 {[%clk
0:00:35.3]} 36... Rf6 {[%clk 0:00:03.1]} 37. Be2 {[%clk 0:00:30.9]} 37... Be5
{[%clk 0:00:03.3]} 38. Bg4 {[%clk 0:00:29.4]} 38... h5 {[%clk 0:00:03.1]} 39.
Bc8 {[%clk 0:00:28.5]} 39... Rf7 {[%clk 0:00:02.5]} 40. Qc6 {[%clk 0:00:25.5]}
40... Kg7 {[%clk 0:00:03]} 41. Kg2 {[%clk 0:00:23]} 41... Rf6 {[%clk 0:00:03.4]}
42. Qc7+ {[%clk 0:00:22.2]} 42... Rf7 {[%clk 0:00:03.1]} 43. Qb6 {[%clk
0:00:21.2]} 43... g5 {[%clk 0:00:03.3]} 44. Qb1 {[%clk 0:00:18.9]} 44... Ng6
{[%clk 0:00:03.1]} 45. Qe4 {[%clk 0:00:17.6]} 45... Rf4 {[%clk 0:00:02.7]} 46.
Qb1 {[%clk 0:00:16.4]} 46... Nh4+ {[%clk 0:00:03.1]} 47. Kf1 {[%clk 0:00:16.4]}
47... Nf3 {[%clk 0:00:03.7]} 48. Qb7+ {[%clk 0:00:15.7]} 48... Rf7 {[%clk
0:00:04]} 49. Qc6 {[%clk 0:00:15.2]} 49... Nd2+ {[%clk 0:00:04.2]} 50. Ke2
{[%clk 0:00:14.4]} 50... Ne4 {[%clk 0:00:04.8]} 51. Qe8 {[%clk 0:00:14.2]} 51...
Nf6 {[%clk 0:00:03.3]} 52. Qe6 {[%clk 0:00:13.4]} 52... Nh7 {[%clk 0:00:03.4]}
53. h4 {[%clk 0:00:12.6]} 53... gxh4 {[%clk 0:00:03.3]} 54. Qh3 {[%clk
0:00:11.9]} 54... Ng5 {[%clk 0:00:02.9]} 55. Qxh4 {[%clk 0:00:11.5]} 55... Kh6
{[%clk 0:00:02.9]} 56. Qh1 {[%clk 0:00:11]} 56... Rf4 {[%clk 0:00:03.3]} 57. Be6
{[%clk 0:00:10.6]} 57... Re4+ {[%clk 0:00:03.6]} 58. Kd3 {[%clk 0:00:09.7]}
58... Rd4+ {[%clk 0:00:03.5]} 59. Kc2 {[%clk 0:00:09.8]} 59... Rc4+ {[%clk
0:00:03.9]} 60. Kb3 {[%clk 0:00:10.1]} 60... Rb4+ {[%clk 0:00:04.4]} 61. Ka3
{[%clk 0:00:10.3]} 61... Rf4 {[%clk 0:00:04.5]} 62. Qb1 {[%clk 0:00:09]} 62...
Rf6 {[%clk 0:00:04.1]} 63. Qb8 {[%clk 0:00:08.4]} 63... Nh7 {[%clk 0:00:03.4]}
64. Qg8 {[%clk 0:00:07.9]} 64... Rf3+ {[%clk 0:00:03.1]} 65. Ka4 {[%clk
0:00:07.3]} 65... Rf4+ {[%clk 0:00:03.6]} 66. Kb5 {[%clk 0:00:07.4]} 66... Rf6
{[%clk 0:00:03.6]} 67. Kc6 {[%clk 0:00:07.8]} 67... Nf8 {[%clk 0:00:03.6]} 68.
Qh8+ {[%clk 0:00:05.8]} 68... Kg5 {[%clk 0:00:03.7]} 69. Qg7+ {[%clk 0:00:05.5]}
69... Ng6 {[%clk 0:00:03.2]} 70. Bf7 {[%clk 0:00:05.5]} 70... c4 {[%clk
0:00:03]} 71. Bxg6 {[%clk 0:00:05.4]} 71... Rxg6 {[%clk 0:00:03.9]} 72. Qf8
{[%clk 0:00:04.8]} 72... Rf6 {[%clk 0:00:04.8]} 73. Qg7+ {[%clk 0:00:04.7]}
73... Kf4 {[%clk 0:00:05.1]} 74. Qh7 {[%clk 0:00:04.8]} 74... c3 {[%clk
0:00:04.4]} 75. Qc2 {[%clk 0:00:05.4]} 75... Kf3 {[%clk 0:00:04.3]} 76. Kb5
{[%clk 0:00:05.6]} 76... h4 {[%clk 0:00:04.6]} 77. Kc4 {[%clk 0:00:06.2]} 77...
h3 {[%clk 0:00:04.7]} 78. Qd3+ {[%clk 0:00:04.5]} 78... Kg2 {[%clk 0:00:05.1]}
79. Qe4+ {[%clk 0:00:04.6]} 79... Rf3 {[%clk 0:00:04.5]} 80. Qg4+ {[%clk
0:00:04.2]} 80... Kxf2 {[%clk 0:00:04.9]} 81. Qh4+ {[%clk 0:00:04.7]} 81... Rg3
{[%clk 0:00:04.2]} 82. Qd4+ {[%clk 0:00:05.1]} 82... Bxd4 {[%clk 0:00:04.3]} 0-1

[Event "Early-Titled-Tuesday-Blitz-August-29-2023"]
[Site "Chess.com"]
[Date "2023.08.29"]
[Round "9"]
[White "Rud_Makarian"]
[Black "joppie2"]
[Result "0-1"]
[WhiteElo "3019"]
[BlackElo "2959"]
[TimeControl "180+1"]
[EndTime "9:45:18 PDT"]
[Termination "joppie2 won by resignation"]

1. d4 {[%clk 0:02:58.7]} 1... Nf6 {[%clk 0:03:00.7]} 2. c4 {[%clk 0:02:58.4]}
2... g6 {[%clk 0:03:01.4]} 3. Nc3 {[%clk 0:02:58.3]} 3... Bg7 {[%clk 0:03:02.1]}
4. e4 {[%clk 0:02:56.5]} 4... d6 {[%clk 0:03:02.7]} 5. Be2 {[%clk 0:02:56.9]}
5... O-O {[%clk 0:03:02.4]} 6. Be3 {[%clk 0:02:57.6]} 6... c5 {[%clk 0:03:01.6]}
7. d5 {[%clk 0:02:57.8]} 7... e6 {[%clk 0:03:02.2]} 8. Nf3 {[%clk 0:02:58.5]}
8... Re8 {[%clk 0:03:02.6]} 9. O-O {[%clk 0:02:57.5]} 9... exd5 {[%clk
0:03:01.4]} 10. exd5 {[%clk 0:02:55.1]} 10... Bg4 {[%clk 0:02:52.5]} 11. h3
{[%clk 0:02:48.4]} 11... Bxf3 {[%clk 0:02:52.6]} 12. Bxf3 {[%clk 0:02:49.3]}
12... Nbd7 {[%clk 0:02:49.5]} 13. Qd2 {[%clk 0:02:49.4]} 13... a6 {[%clk
0:02:35.2]} 14. Rfe1 {[%clk 0:02:43.3]} 14... Ne5 {[%clk 0:02:20.9]} 15. Be2
{[%clk 0:02:43.2]} 15... Re7 {[%clk 0:02:16.5]} 16. Bf1 {[%clk 0:02:36.8]} 16...
Qf8 {[%clk 0:02:17]} 17. Bg5 {[%clk 0:02:21.7]} 17... Ree8 {[%clk 0:01:57.8]}
18. Re3 {[%clk 0:02:01.8]} 18... h6 {[%clk 0:01:57.6]} 19. Bf4 {[%clk
0:01:59.9]} 19... Nh5 {[%clk 0:01:50.5]} 20. Bh2 {[%clk 0:01:56.5]} 20... f5
{[%clk 0:01:51]} 21. Rae1 {[%clk 0:01:42.4]} 21... f4 {[%clk 0:01:50.8]} 22. Re4
{[%clk 0:01:42.1]} 22... g5 {[%clk 0:01:51.4]} 23. Qd1 {[%clk 0:01:20.7]} 23...
Nf6 {[%clk 0:01:50.9]} 24. R4e2 {[%clk 0:01:21.3]} 24... Qf7 {[%clk 0:01:42.8]}
25. Kh1 {[%clk 0:01:17.9]} 25... Re7 {[%clk 0:01:33.8]} 26. f3 {[%clk
0:01:08.6]} 26... Rae8 {[%clk 0:01:31.2]} 27. Ne4 {[%clk 0:01:08.2]} 27... Nxe4
{[%clk 0:01:30.3]} 28. Rxe4 {[%clk 0:01:09.1]} 28... Ng6 {[%clk 0:01:29.5]} 29.
Bd3 {[%clk 0:01:06]} 29... Rxe4 {[%clk 0:01:17.8]} 30. Rxe4 {[%clk 0:01:01.3]}
30... Rxe4 {[%clk 0:01:13.1]} 31. Bxe4 {[%clk 0:01:02.2]} 31... Bd4 {[%clk
0:01:12.4]} 32. b4 {[%clk 0:00:43.9]} 32... Ne5 {[%clk 0:01:08.9]} 33. Qb3
{[%clk 0:00:31]} 33... Qc7 {[%clk 0:01:00.3]} 34. g3 {[%clk 0:00:22.2]} 34...
cxb4 {[%clk 0:00:45.9]} 35. gxf4 {[%clk 0:00:21.5]} 35... Qxc4 {[%clk
0:00:37.1]} 36. Qd1 {[%clk 0:00:13.3]} 36... gxf4 {[%clk 0:00:17.5]} 37. Bxf4
{[%clk 0:00:14.2]} 37... Kg7 {[%clk 0:00:18]} 38. Qe1 {[%clk 0:00:09.8]} 38...
Nf7 {[%clk 0:00:13.6]} 39. Qg3+ {[%clk 0:00:06.7]} 39... Kh8 {[%clk 0:00:12.1]}
40. Qg2 {[%clk 0:00:05.9]} 40... Be5 {[%clk 0:00:10.1]} 41. Bxe5+ {[%clk
0:00:05.6]} 41... Nxe5 {[%clk 0:00:10.3]} 42. Qd2 {[%clk 0:00:04.4]} 42... Kg7
{[%clk 0:00:09.6]} 43. Qf4 {[%clk 0:00:04.6]} 43... Qf1+ {[%clk 0:00:08.9]} 44.
Kh2 {[%clk 0:00:05.3]} 44... Qf2+ {[%clk 0:00:09.4]} 45. Kh1 {[%clk 0:00:06]}
45... Qxa2 {[%clk 0:00:06]} 46. Qg3+ {[%clk 0:00:05.6]} 46... Kh8 {[%clk
0:00:04.7]} 47. Qf4 {[%clk 0:00:05.5]} 47... Qa1+ {[%clk 0:00:04.7]} 48. Kg2
{[%clk 0:00:05]} 48... Qb2+ {[%clk 0:00:05.4]} 49. Kg3 {[%clk 0:00:05.1]} 49...
Kg7 {[%clk 0:00:04.5]} 50. Qf5 {[%clk 0:00:04.7]} 50... Qc1 {[%clk 0:00:03.5]}
51. f4 {[%clk 0:00:04.3]} 51... Qg1+ {[%clk 0:00:03.9]} 52. Kh4 {[%clk
0:00:03.1]} 52... Ng6+ {[%clk 0:00:04.5]} 53. Kh5 {[%clk 0:00:03.7]} 53... Qd1+
{[%clk 0:00:05]} 54. Qg4 {[%clk 0:00:02.3]} 54... Qxg4+ {[%clk 0:00:04.1]} 55.
Kxg4 {[%clk 0:00:03.2]} 55... a5 {[%clk 0:00:04.1]} 56. Bc2 {[%clk 0:00:02.7]}
56... b5 {[%clk 0:00:02.9]} 57. Kf5 {[%clk 0:00:02.8]} 57... a4 {[%clk
0:00:03.3]} 58. Ke6 {[%clk 0:00:03.1]} 58... b3 {[%clk 0:00:03.9]} 59. Bxg6
{[%clk 0:00:02.8]} 59... Kxg6 {[%clk 0:00:03.5]} 60. f5+ {[%clk 0:00:03.5]}
60... Kh5 {[%clk 0:00:04.2]} 61. f6 {[%clk 0:00:03.4]} 61... b2 {[%clk
0:00:04.8]} 62. f7 {[%clk 0:00:04.1]} 62... b1=Q {[%clk 0:00:05.5]} 63. f8=Q
{[%clk 0:00:04.9]} 63... Qe4+ {[%clk 0:00:05.8]} 64. Kd7 {[%clk 0:00:04.3]}
64... Qxd5 {[%clk 0:00:06.4]} 65. Qf4 {[%clk 0:00:03.5]} 65... Qg5 {[%clk
0:00:05.6]} 66. Qf7+ {[%clk 0:00:02.9]} 66... Kh4 {[%clk 0:00:05.9]} 67. Qf3
{[%clk 0:00:02.7]} 67... Qg3 {[%clk 0:00:05.6]} 68. Qf6+ {[%clk 0:00:03.1]}
68... Kxh3 {[%clk 0:00:05.9]} 69. Qxh6+ {[%clk 0:00:03.7]} 69... Qh4 {[%clk
0:00:06.1]} 70. Qe3+ {[%clk 0:00:03.4]} 70... Kg2 {[%clk 0:00:05.3]} 71. Qe2+
{[%clk 0:00:03.4]} 71... Kg3 {[%clk 0:00:05.4]} 72. Qxb5 {[%clk 0:00:03.9]}
72... Qd4 {[%clk 0:00:05.1]} 73. Qc6 {[%clk 0:00:01.3]} 73... Kf4 {[%clk
0:00:05]} 74. Qc2 {[%clk 0:00:01.5]} 74... Ke3 {[%clk 0:00:05.4]} 75. Qc1+
{[%clk 0:00:01.5]} 75... Kd3 {[%clk 0:00:05.6]} 76. Qd1+ {[%clk 0:00:02]} 76...
Ke4 {[%clk 0:00:06.2]} 77. Qg4+ {[%clk 0:00:02.4]} 77... Kd5 {[%clk 0:00:06.6]}
78. Qf5+ {[%clk 0:00:02.5]} 78... Kc4 {[%clk 0:00:06.7]} 79. Qc2+ {[%clk
0:00:03.1]} 79... Kb4 {[%clk 0:00:06.8]} 80. Qb1+ {[%clk 0:00:03.6]} 80... Ka5
{[%clk 0:00:07.5]} 81. Qe1+ {[%clk 0:00:03.7]} 81... Qb4 {[%clk 0:00:07.5]} 82.
Qe8 {[%clk 0:00:03.2]} 82... Qb5+ {[%clk 0:00:07.4]} 0-1

[Event "Early-Titled-Tuesday-Blitz-August-29-2023"]
[Site "Chess.com"]
[Date "2023.08.29"]
[Round "9"]
[White "Iunusovnuriddin"]
[Black "19912131712118"]
[Result "1-0"]
[WhiteElo "2317"]
[BlackElo "2406"]
[TimeControl "180+1"]
[EndTime "9:45:26 PDT"]
[Termination "Iunusovnuriddin won by checkmate"]

1. e4 {[%clk 0:03:00.1]} 1... c5 {[%clk 0:03:00.9]} 2. c3 {[%clk 0:02:59.8]}
2... e6 {[%clk 0:02:50.3]} 3. d4 {[%clk 0:02:59.7]} 3... cxd4 {[%clk 0:02:51.2]}
4. cxd4 {[%clk 0:02:59.7]} 4... d5 {[%clk 0:02:52.1]} 5. exd5 {[%clk 0:02:59.4]}
5... exd5 {[%clk 0:02:51.9]} 6. Nf3 {[%clk 0:02:58.6]} 6... Nf6 {[%clk
0:02:52.3]} 7. Nc3 {[%clk 0:02:58.2]} 7... Be7 {[%clk 0:02:52.1]} 8. Be2 {[%clk
0:02:56.8]} 8... O-O {[%clk 0:02:52.2]} 9. O-O {[%clk 0:02:57.1]} 9... h6 {[%clk
0:02:52.8]} 10. h3 {[%clk 0:02:56.7]} 10... Nc6 {[%clk 0:02:51.7]} 11. Bf4
{[%clk 0:02:55.3]} 11... Bf5 {[%clk 0:02:49.3]} 12. Qb3 {[%clk 0:02:49]} 12...
Na5 {[%clk 0:02:48.8]} 13. Qa4 {[%clk 0:02:41.9]} 13... Bd7 {[%clk 0:02:41.7]}
14. Qd1 {[%clk 0:02:40.4]} 14... Rc8 {[%clk 0:02:40.6]} 15. Ne5 {[%clk
0:02:40.4]} 15... Bf5 {[%clk 0:02:40.1]} 16. Rc1 {[%clk 0:02:03.6]} 16... Nc4
{[%clk 0:02:30.2]} 17. Nxc4 {[%clk 0:01:37.8]} 17... dxc4 {[%clk 0:02:31.1]} 18.
Bf3 {[%clk 0:01:38.4]} 18... Qd7 {[%clk 0:02:24.4]} 19. Re1 {[%clk 0:01:29.8]}
19... Rfd8 {[%clk 0:02:23.2]} 20. Qa4 {[%clk 0:01:28.1]} 20... a6 {[%clk
0:02:14.4]} 21. Qxd7 {[%clk 0:01:09.9]} 21... Rxd7 {[%clk 0:02:13.3]} 22. d5
{[%clk 0:01:10.8]} 22... Bd6 {[%clk 0:02:08.5]} 23. Be3 {[%clk 0:01:04.1]} 23...
b5 {[%clk 0:01:54]} 24. Rcd1 {[%clk 0:01:03]} 24... g5 {[%clk 0:01:43.8]} 25.
Bd4 {[%clk 0:01:02.8]} 25... Ne8 {[%clk 0:01:40.6]} 26. Bg4 {[%clk 0:01:02.1]}
26... Bxg4 {[%clk 0:01:39.2]} 27. hxg4 {[%clk 0:01:03]} 27... Bb4 {[%clk
0:01:33.9]} 28. a3 {[%clk 0:00:52.6]} 28... Bd6 {[%clk 0:01:33.5]} 29. Ne4
{[%clk 0:00:51.2]} 29... Rcd8 {[%clk 0:01:29.7]} 30. Nf6+ {[%clk 0:00:38.9]}
30... Nxf6 {[%clk 0:01:27.5]} 31. Bxf6 {[%clk 0:00:39.4]} 31... Rc8 {[%clk
0:01:26.9]} 32. g3 {[%clk 0:00:37.5]} 32... a5 {[%clk 0:01:26.7]} 33. Re4 {[%clk
0:00:34.6]} 33... b4 {[%clk 0:01:25.8]} 34. axb4 {[%clk 0:00:34.6]} 34... axb4
{[%clk 0:01:26.7]} 35. Rc1 {[%clk 0:00:34.8]} 35... Rdc7 {[%clk 0:01:22.7]} 36.
Rce1 {[%clk 0:00:24.1]} 36... c3 {[%clk 0:01:10.8]} 37. bxc3 {[%clk 0:00:25]}
37... bxc3 {[%clk 0:01:10.4]} 38. Re8+ {[%clk 0:00:25.4]} 38... Kh7 {[%clk
0:01:10.3]} 39. Rxc8 {[%clk 0:00:09.7]} 39... Rxc8 {[%clk 0:01:11.2]} 40. Kf1
{[%clk 0:00:08]} 40... Kg6 {[%clk 0:01:06.4]} 41. Bd4 {[%clk 0:00:06.7]} 41...
c2 {[%clk 0:01:06.5]} 42. Bb2 {[%clk 0:00:06.6]} 42... Bb4 {[%clk 0:01:01.2]}
43. Ra1 {[%clk 0:00:04.7]} 43... Bd2 {[%clk 0:00:50.2]} 44. Bc1 {[%clk
0:00:05.3]} 44... Bc3 {[%clk 0:00:36.1]} 45. Ra6+ {[%clk 0:00:05.7]} 45... Kh7
{[%clk 0:00:35.4]} 46. Ke2 {[%clk 0:00:06.6]} 46... Bd4 {[%clk 0:00:31.1]} 47.
Kd3 {[%clk 0:00:07]} 47... Bxf2 {[%clk 0:00:31]} 48. Rf6 {[%clk 0:00:07.2]}
48... Bxg3 {[%clk 0:00:27.5]} 49. Rxf7+ {[%clk 0:00:07.4]} 49... Kg6 {[%clk
0:00:27.3]} 50. Rf3 {[%clk 0:00:07.7]} 50... Bf4 {[%clk 0:00:25.8]} 51. Rf1
{[%clk 0:00:07.4]} 51... Be5 {[%clk 0:00:19.2]} 52. Rf2 {[%clk 0:00:06.4]} 52...
Rc3+ {[%clk 0:00:18.5]} 53. Ke4 {[%clk 0:00:05]} 53... Bg7 {[%clk 0:00:18]} 54.
d6 {[%clk 0:00:04.6]} 54... Rc4+ {[%clk 0:00:16.3]} 55. Kd5 {[%clk 0:00:04.4]}
55... Rd4+ {[%clk 0:00:15.9]} 56. Kc6 {[%clk 0:00:04.8]} 56... Rc4+ {[%clk
0:00:15.4]} 57. Kd5 {[%clk 0:00:04.5]} 57... Rd4+ {[%clk 0:00:13.8]} 58. Kc6
{[%clk 0:00:04.7]} 58... Rxg4 {[%clk 0:00:10.3]} 59. d7 {[%clk 0:00:05]} 59...
Rc4+ {[%clk 0:00:09.7]} 60. Kd5 {[%clk 0:00:04.7]} 60... Rd4+ {[%clk 0:00:09.9]}
61. Kc6 {[%clk 0:00:05.6]} 61... Be5 {[%clk 0:00:07.1]} 62. Re2 {[%clk
0:00:04.7]} 62... Bf4 {[%clk 0:00:05.4]} 63. Rxc2 {[%clk 0:00:04.4]} 63... Bxc1
{[%clk 0:00:03.7]} 64. Rxc1 {[%clk 0:00:05.2]} 64... g4 {[%clk 0:00:04.4]} 65.
Kc7 {[%clk 0:00:04.5]} 65... h5 {[%clk 0:00:03.5]} 66. Rc6+ {[%clk 0:00:05]}
66... Kg5 {[%clk 0:00:02.5]} 67. Rd6 {[%clk 0:00:05.9]} 67... Rc4+ {[%clk
0:00:02.6]} 68. Kb6 {[%clk 0:00:06.2]} 68... g3 {[%clk 0:00:03.5]} 69. d8=Q+
{[%clk 0:00:05.5]} 69... Kg4 {[%clk 0:00:04.4]} 70. Rd4+ {[%clk 0:00:05.2]}
70... Rxd4 {[%clk 0:00:03.6]} 71. Qxd4+ {[%clk 0:00:06.1]} 71... Kh3 {[%clk
0:00:04.3]} 72. Qe3 {[%clk 0:00:05.4]} 72... h4 {[%clk 0:00:05.2]} 73. Kc5
{[%clk 0:00:05.8]} 73... Kh2 {[%clk 0:00:05.5]} 74. Qf4 {[%clk 0:00:06]} 74...
h3 {[%clk 0:00:05.4]} 75. Kd4 {[%clk 0:00:06.5]} 75... Kg2 {[%clk 0:00:05.1]}
76. Ke3 {[%clk 0:00:07.1]} 76... h2 {[%clk 0:00:05.6]} 77. Qf3+ {[%clk
0:00:06.6]} 77... Kg1 {[%clk 0:00:06.1]} 78. Qxg3+ {[%clk 0:00:06.4]} 78... Kh1
{[%clk 0:00:06.7]} 79. Qf3+ {[%clk 0:00:05]} 79... Kg1 {[%clk 0:00:07]} 80. Qg4+
{[%clk 0:00:05.2]} 80... Kh1 {[%clk 0:00:06.9]} 81. Qf4 {[%clk 0:00:02.2]} 81...
Kg1 {[%clk 0:00:07.2]} 82. Qf3 {[%clk 0:00:02.6]} 82... h1=Q {[%clk 0:00:04.1]}
83. Qg3+ {[%clk 0:00:03.2]} 83... Kf1 {[%clk 0:00:04]} 84. Qf2# {[%clk
0:00:03.3]} 1-0

[Event "Early-Titled-Tuesday-Blitz-August-29-2023"]
[Site "Chess.com"]
[Date "2023.08.29"]
[Round "10"]
[White "Pilopa"]
[Black "KVAIDAN"]
[Result "1-0"]
[WhiteElo "2688"]
[BlackElo "2362"]
[TimeControl "180+1"]
[EndTime "9:48:14 PDT"]
[Termination "Pilopa won by checkmate"]

1. d4 {[%clk 0:03:00.9]} 1... e6 {[%clk 0:02:58.8]} 2. Nf3 {[%clk 0:03:00.5]}
2... f5 {[%clk 0:02:59.2]} 3. d5 {[%clk 0:02:56.5]} 3... Bd6 {[%clk 0:02:58]} 4.
Nc3 {[%clk 0:02:48.3]} 4... Nf6 {[%clk 0:02:57.5]} 5. Bg5 {[%clk 0:02:46.5]}
5... O-O {[%clk 0:02:56.9]} 6. e3 {[%clk 0:02:44.7]} 6... b6 {[%clk 0:02:47.6]}
7. Bc4 {[%clk 0:02:43.6]} 7... a6 {[%clk 0:02:38.7]} 8. a4 {[%clk 0:02:40.2]}
8... Qe8 {[%clk 0:02:33.1]} 9. O-O {[%clk 0:02:36.5]} 9... Qg6 {[%clk
0:02:18.3]} 10. Bf4 {[%clk 0:02:35.8]} 10... Ne4 {[%clk 0:02:11.1]} 11. Bxd6
{[%clk 0:02:32.2]} 11... Nxc3 {[%clk 0:02:00.8]} 12. bxc3 {[%clk 0:02:30.7]}
12... cxd6 {[%clk 0:02:00.9]} 13. dxe6 {[%clk 0:02:31]} 13... dxe6 {[%clk
0:02:01.1]} 14. Qxd6 {[%clk 0:02:30.3]} 14... Kh8 {[%clk 0:02:00.7]} 15. Qxf8#
{[%clk 0:02:29.2]} 1-0

[Event "Early-Titled-Tuesday-Blitz-August-29-2023"]
[Site "Chess.com"]
[Date "2023.08.29"]
[Round "10"]
[White "Goryachkina"]
[Black "masterofpuppets2"]
[Result "1-0"]
[WhiteElo "2637"]
[BlackElo "2461"]
[TimeControl "180+1"]
[EndTime "9:48:39 PDT"]
[Termination "Goryachkina won by resignation"]

1. e4 {[%clk 0:03:00.2]} 1... c5 {[%clk 0:02:23.4]} 2. Nf3 {[%clk 0:02:58.9]}
2... Nc6 {[%clk 0:02:22.8]} 3. Bb5 {[%clk 0:02:58.6]} 3... e6 {[%clk 0:02:22.8]}
4. Bxc6 {[%clk 0:02:58.2]} 4... bxc6 {[%clk 0:02:23.7]} 5. d3 {[%clk 0:02:58.7]}
5... f6 {[%clk 0:02:23.8]} 6. O-O {[%clk 0:02:48.2]} 6... Ne7 {[%clk 0:02:23.8]}
7. e5 {[%clk 0:02:40.9]} 7... fxe5 {[%clk 0:02:22.2]} 8. Nxe5 {[%clk 0:02:40.6]}
8... d6 {[%clk 0:02:22.8]} 9. Nc4 {[%clk 0:02:37.8]} 9... e5 {[%clk 0:02:22.2]}
10. f4 {[%clk 0:02:37.6]} 10... exf4 {[%clk 0:02:19.1]} 11. Bxf4 {[%clk
0:02:37.5]} 11... Ng6 {[%clk 0:02:09.8]} 12. Qe2+ {[%clk 0:02:28.3]} 12... Kd7
{[%clk 0:02:09.8]} 13. Bg3 {[%clk 0:02:21.1]} 13... Qe7 {[%clk 0:02:00.7]} 14.
Qd2 {[%clk 0:02:14]} 14... Kc7 {[%clk 0:01:56.7]} 15. Bxd6+ {[%clk 0:02:13.7]}
1-0

[Event "Early-Titled-Tuesday-Blitz-August-29-2023"]
[Site "Chess.com"]
[Date "2023.08.29"]
[Round "10"]
[White "DrDreBeats"]
[Black "LeoLV10"]
[Result "1-0"]
[WhiteElo "2623"]
[BlackElo "2496"]
[TimeControl "180+1"]
[EndTime "9:49:07 PDT"]
[Termination "DrDreBeats won by resignation"]

1. e4 {[%clk 0:03:00.9]} 1... c6 {[%clk 0:02:54.4]} 2. d4 {[%clk 0:03:00.4]}
2... d5 {[%clk 0:02:54.2]} 3. e5 {[%clk 0:03:01]} 3... c5 {[%clk 0:02:53.1]} 4.
c4 {[%clk 0:03:00.6]} 4... cxd4 {[%clk 0:02:44.5]} 5. Nf3 {[%clk 0:03:00.7]}
5... Nc6 {[%clk 0:02:42.6]} 6. cxd5 {[%clk 0:02:59.9]} 6... Qxd5 {[%clk
0:02:43.5]} 7. Nc3 {[%clk 0:02:58.6]} 7... Qa5 {[%clk 0:02:40.2]} 8. Nxd4 {[%clk
0:02:58.3]} 8... Qxe5+ {[%clk 0:02:39.9]} 9. Be3 {[%clk 0:02:58.9]} 9... Nxd4
{[%clk 0:02:36.9]} 10. Qxd4 {[%clk 0:02:59.8]} 10... Qxd4 {[%clk 0:02:37.1]} 11.
Bxd4 {[%clk 0:02:59.4]} 11... Bd7 {[%clk 0:02:37.3]} 12. Nb5 {[%clk 0:02:53.3]}
12... Rc8 {[%clk 0:02:36.1]} 13. Nxa7 {[%clk 0:02:48.3]} 13... Rc2 {[%clk
0:02:25.5]} 14. Bd3 {[%clk 0:02:46]} 14... Rc7 {[%clk 0:02:24]} 15. Bb6 {[%clk
0:02:43.2]} 15... Rc6 {[%clk 0:02:16.7]} 16. Nxc6 {[%clk 0:02:42.5]} 16... Bxc6
{[%clk 0:02:17.6]} 17. O-O {[%clk 0:02:39]} 17... e6 {[%clk 0:02:18.5]} 18. a4
{[%clk 0:02:37.1]} 18... Nf6 {[%clk 0:02:16]} 19. a5 {[%clk 0:02:36.1]} 19...
Bd6 {[%clk 0:02:12.4]} 20. Rfc1 {[%clk 0:02:35.4]} 20... Kd7 {[%clk 0:02:11.6]}
21. a6 {[%clk 0:02:30.9]} 21... bxa6 {[%clk 0:02:11.5]} 22. Rxa6 {[%clk
0:02:31]} 22... Rb8 {[%clk 0:02:11.3]} 23. Ra7+ {[%clk 0:02:31.1]} 23... Rb7
{[%clk 0:01:55.2]} 24. Bb5 {[%clk 0:02:31]} 1-0